[Event "18th Charleroi Experts 2019"]
[Site "Charleroi"]
[Date "2019.07.27"]
[Round "1.1"]
[White "Hamblok, Roel"]
[Black "Cools, Gorik"]
[Result "0-1"]
[ECO "E05"]
[WhiteElo "2261"]
[BlackElo "2280"]
[Annotator "NA"]
[PlyCount "68"]
[EventDate "2019.07.22"]
[EventType "tourn"]
[EventCountry "BEL"]
[SourceTitle "playchess.com"]
[Source "ChessBase"]
[SourceQuality "1"]
[TimeControl "40/5400+30:1800+30"]

1. d4 {[%emt 0:00:00]} Nf6 {[%emt 0:00:00]} 2. c4 {[%emt 0:00:00]} e6 {[%emt 0:00:03]} 3. g3 {[%emt 0:00:10]} d5 {[%emt 0:01:01]} 4. Nf3 {[%emt 0:00:07]} Be7 {[%emt 0:00:08]} 5. Bg2 {[%emt 0:00:05]} O-O {[%emt 0:00:05]} 6. O-O {[%emt 0:00:04]} dxc4 {[%emt 0:00:05]} 7. Qc2 {[%emt 0:00:04]} a6 {[%emt 0:00:33]} 8. a4 {[%emt 0:00:07]} Bd7 {[%emt 0:00:05]} 9. Qxc4 {[%emt 0:00:08]} Bc6 {[%emt 0:00:13]} 10. Bf4 {[%emt 0:00:11]} Bd6 {[%emt 0:01:32]} 11. Bg5 {[%emt 0:03:33]} Nbd7 {[%emt 0:17:44]} 12. Nc3 {[%emt 0:06:43]} h6 {[%emt 0:00:09]} 13. Bxf6 {[%emt 0:00:07]} Nxf6 {[%emt 0:00:06]} 14. Rfe1 {[%emt 0:00:08]} Bd5 {[%emt 0:00:55]} 15. Qd3 {[%emt 0:02:24]} Bxf3 {[%emt 0:00:05]} 16. Bxf3 {[%emt 0:00:25]} c6 {[%emt 0:00:02]} 17. Red1 {[%emt 0:14:37]} a5 {[%emt 0:00:29]} 18. e4 {[%emt 0:00:17]} e5 {[%emt 0:00:27]} 19. d5 {[%emt 0:01:14]} Bc5 {[%emt 0:01:58]} 20. dxc6 {[%emt 0:07:26]} bxc6 {[%emt 0:00:06]} 21. Qxd8 {[%emt 0:00:37]} Rfxd8 {[%emt 0:00:06]} 22. Ne2 {[%emt 0:02:33]} Ba7 {[%emt 0:15:14]} 23. Rxd8+ {[%emt 0:14:34]} Rxd8 {[%emt 0:00:08]} 24. Rc1 {[%emt 0:00:04]} Rd6 {[%emt 0:01:08]} 25. Rc4 {[%emt 0:03:39]} Nd7 {[%emt 0:00:46]} 26. Nc1 {[%emt 0:14:22]} Rd2 {[%emt 0:05:10]} 27. Be2 {[%emt 0:08:35]} Bd4 {[%emt 0:07:09]} 28. Kf1 {[%emt 0:12:39]} Rxb2 {[%emt 0:11:24]} 29. Rxc6 {[%emt 0:05:46]} Nc5 {[%emt 0:00:02]} 30. Rc8+ {[%emt 0:04:21]} Kh7 {[%emt 0:00:04]} 31. Ke1 {[%emt 0:00:00]} Rb1 {[%emt 0:08:13]} 32. Kd1 {[%emt 0:00:21]} Nxa4 {[%emt 0:00:02]} 33. f3 {[%emt 0:00:34]} Be3 {[%emt 0:00:44]} 34. Ba6 {[%emt 0:00:34]} Nc5 {[%emt 0:03:46]} 0-1

[Event "18th Charleroi Experts 2019"]
[Site "Charleroi"]
[Date "2019.07.27"]
[Round "1.2"]
[White "Dardha, Daniel"]
[Black "Dgebuadze, Alexandre"]
[Result "0-1"]
[ECO "D35"]
[WhiteElo "2420"]
[BlackElo "2495"]
[Annotator "ChessBase"]
[PlyCount "70"]
[EventDate "2019.07.22"]
[EventType "tourn"]
[EventCountry "BEL"]
[SourceTitle "playchess.com"]
[Source "ChessBase"]
[SourceQuality "1"]
[TimeControl "40/5400+30:1800+30"]

1. d4 {[%emt 0:00:29]} Nf6 {[%emt 0:00:00]} 2. Nf3 {[%emt 0:00:41]} e6 {[%emt 0:00:00]} 3. c4 {[%emt 0:00:35]} d5 {[%emt 0:00:00]} 4. cxd5 {[%emt 0:00:43]} exd5 {[%emt 0:00:23]} 5. Bg5 {[%emt 0:00:19]} Be7 {[%emt 0:00:58]} 6. e3 {[%emt 0:01:02]} Bf5 {[%emt 0:02:42]} 7. Nc3 {[%emt 0:04:49]} c6 {[%emt 0:04:15]} 8. Bd3 {[%emt 0:01:27]} Bxd3 {[%emt 0:00:18]} 9. Qxd3 {[%emt 0:00:04]} Nbd7 {[%emt 0:00:18]} 10. O-O {[%emt 0:00:36]} O-O {[%emt 0:00:16]} 11. h3 {[%emt 0:04:21]} Re8 {[%emt 0:06:50]} 12. Rab1 {[%emt 0:06:34]} a5 {[%emt 0:04:23]} 13. Bf4 {[%emt 0:04:21]} Nf8 {[%emt 0:00:48]} 14. Ne5 {[%emt 0:04:00]} Ng6 {[%emt 0:20:27]} 15. Bg3 {[%emt 0:06:52]} Nxe5 {[%emt 0:03:45]} 16. dxe5 {[%emt 0:03:41]} Nd7 {[%emt 0:00:26]} 17. Rbd1 {[%emt 0:14:08]} Bb4 {[%emt 0:27:14]} 18. a3 {[%emt 0:19:20]} Nc5 {[%emt 0:14:07]} 19. Qd4 {[%emt 0:06:42]} Bxc3 {[%emt 0:00:14]} 20. bxc3 {[%emt 0:00:04]} Qe7 {[%emt 0:03:50]} 21. Bh4 {[%emt 0:10:57]} Qf8 {[%emt 0:00:06]} 22. a4 {[%emt 0:00:55]} Ne6 {[%emt 0:04:57]} 23. Qg4 {[%emt 0:01:51]} Qc5 {[%emt 0:00:10]} 24. Kh1 {[%emt 0:03:48]} Qc4 {[%emt 0:01:27]} 25. f4 {[%emt 0:00:27]} Qe4 {[%emt 0:00:05]} 26. Qg3 {[%emt 0:00:43]} Nc5 {[%emt 0:01:51]} 27. Rd4 {[%emt 0:01:42]} Qg6 {[%emt 0:00:04]} 28. Qf3 {[%emt 0:00:04]} Qc2 {[%emt 0:02:47]} 29. f5 {[%emt 0:02:00]} Rxe5 {[%emt 0:00:09]} 30. f6 {[%emt 0:01:08]} g6 {[%emt 0:00:16]} 31. Qf4 {[%emt 0:00:34]} Rf5 {[%emt 0:00:14]} 32. Qh6 {[%emt 0:00:16]} Rxf1+ {[%emt 0:00:04]} 33. Kh2 {[%emt 0:00:04]} Ne6 {[%emt 0:00:04]} 34. Be1 {[%emt 0:01:09]} Rxf6 {[%emt 0:01:48]} 35. Rh4 {[%emt 0:00:12]} g5 {[%emt 0:00:39]} 0-1

[Event "18th Charleroi Experts 2019"]
[Site "Charleroi"]
[Date "2019.07.27"]
[Round "1.3"]
[White "Sterck, Arno"]
[Black "Ringoir, Tanguy"]
[Result "1-0"]
[ECO "E32"]
[WhiteElo "2316"]
[BlackElo "2503"]
[Annotator "ChessBase"]
[PlyCount "79"]
[EventDate "2019.07.22"]
[EventType "tourn"]
[EventCountry "BEL"]
[SourceTitle "playchess.com"]
[Source "ChessBase"]
[SourceQuality "1"]
[TimeControl "40/5400+30:1800+30"]

1. d4 {[%emt 0:00:00]} Nf6 {[%emt 0:00:00]} 2. c4 {[%emt 0:00:00]} e6 {[%emt 0:00:00]} 3. Nc3 {[%emt 0:00:00]} Bb4 {[%emt 0:00:00]} 4. Qc2 {[%emt 0:00:10]} O-O {[%emt 0:00:07]} 5. a3 {[%emt 0:00:09]} Bxc3+ {[%emt 0:00:14]} 6. Qxc3 {[%emt 0:00:10]} b6 {[%emt 0:00:05]} 7. Bg5 {[%emt 0:00:25]} Bb7 {[%emt 0:00:34]} 8. f3 {[%emt 0:00:45]} h6 {[%emt 0:08:05]} 9. Bh4 {[%emt 0:00:49]} d5 {[%emt 0:08:01]} 10. e3 {[%emt 0:00:16]} Nbd7 {[%emt 0:01:20]} 11. cxd5 {[%emt 0:00:28]} Nxd5 {[%emt 0:00:50]} 12. Bxd8 {[%emt 0:00:10]} Nxc3 {[%emt 0:00:04]} 13. Be7 {[%emt 0:00:13]} Rfe8 {[%emt 0:00:41]} 14. Bh4 {[%emt 0:00:08]} Nd5 {[%emt 0:00:25]} 15. Bf2 {[%emt 0:00:20]} e5 {[%emt 0:07:05]} 16. e4 {[%emt 0:03:27]} exd4 {[%emt 0:02:03]} 17. O-O-O {[%emt 0:00:14]} Nf4 {[%emt 0:04:52]} 18. Bxd4 {[%emt 0:15:52]} Rad8 {[%emt 0:02:04]} 19. Ne2 {[%emt 0:10:32]} Ne6 {[%emt 0:00:43]} 20. Be3 {[%emt 0:00:39]} Ba6 {[%emt 0:07:22]} 21. Nc3 {[%emt 0:10:01]} Bxf1 {[%emt 0:00:19]} 22. Rhxf1 {[%emt 0:00:04]} Ne5 {[%emt 0:14:03]} 23. Rxd8 {[%emt 0:14:57]} Rxd8 {[%emt 0:00:28]} 24. Rd1 {[%emt 0:00:16]} Rxd1+ {[%emt 0:00:25]} 25. Kxd1 {[%emt 0:01:13]} Nc4 {[%emt 0:04:10]} 26. Bc1 {[%emt 0:00:05]} Nd4 {[%emt 0:03:14]} 27. Ne2 {[%emt 0:00:59]} Nxe2 {[%emt 0:03:11]} 28. Kxe2 {[%emt 0:00:53]} c6 {[%emt 0:07:57]} 29. f4 {[%emt 0:06:36]} f6 {[%emt 0:05:16]} 30. Kd3 {[%emt 0:01:27]} Nd6 {[%emt 0:04:12]} 31. f5 {[%emt 0:03:18]} Kf7 {[%emt 0:02:26]} 32. Bf4 {[%emt 0:01:54]} Ke7 {[%emt 0:12:13]} 33. g4 {[%emt 0:01:05]} Nf7 {[%emt 0:03:19]} 34. Kd4 {[%emt 0:01:41]} Kd7 {[%emt 0:00:40]} 35. h4 {[%emt 0:04:30]} a5 {[%emt 0:00:28]} 36. a4 {[%emt 0:01:29]} Nd8 {[%emt 0:00:28]} 37. e5 {[%emt 0:00:07]} b5 {[%emt 0:00:34]} 38. exf6 {[%emt 0:00:47]} gxf6 {[%emt 0:00:12]} 39. Bxh6 {[%emt 0:00:22]} bxa4 {[%emt 0:00:41]} 40. Bf4 {[%emt 0:01:57]} 1-0

[Event "18th Charleroi Experts 2019"]
[Site "Charleroi"]
[Date "2019.07.27"]
[Round "1.4"]
[White "Lenaerts, Lennert"]
[Black "Van der Stricht, Geert"]
[Result "1-0"]
[ECO "A11"]
[WhiteElo "2355"]
[BlackElo "2374"]
[Annotator "NA"]
[PlyCount "85"]
[EventDate "2019.07.22"]
[EventType "tourn"]
[EventCountry "BEL"]
[SourceTitle "playchess.com"]
[Source "ChessBase"]
[SourceQuality "1"]
[TimeControl "40/5400+30:1800+30"]

1. Nf3 {[%emt 0:00:00]} d5 {[%emt 0:00:00]} 2. c4 {[%emt 0:00:51]} c6 {[%emt 0:00:36]} 3. g3 {[%emt 0:01:19]} dxc4 {[%emt 0:02:08]} 4. Bg2 {[%emt 0:00:12]} b5 {[%emt 0:00:51]} 5. O-O {[%emt 0:01:16]} Nf6 {[%emt 0:07:04]} 6. a4 {[%emt 0:01:11]} Bb7 {[%emt 0:00:13]} 7. b3 {[%emt 0:01:22]} b4 {[%emt 0:14:31]} 8. bxc4 {[%emt 0:01:43]} c5 {[%emt 0:00:12]} 9. a5 {[%emt 0:07:30]} a6 {[%emt 0:15:55]} 10. Bb2 {[%emt 0:04:35]} Nbd7 {[%emt 0:00:51]} 11. e3 {[%emt 0:02:09]} g6 {[%emt 0:05:41]} 12. d4 {[%emt 0:03:34]} Bg7 {[%emt 0:00:19]} 13. Nbd2 {[%emt 0:01:26]} O-O {[%emt 0:00:23]} 14. Qe2 {[%emt 0:03:00]} Qc7 {[%emt 0:08:22]} 15. Nb3 {[%emt 0:03:23]} Ne4 {[%emt 0:04:33]} 16. Rac1 {[%emt 0:01:58]} Rac8 {[%emt 0:02:25]} 17. Rfd1 {[%emt 0:04:06]} Bc6 {[%emt 0:06:00]} 18. Qc2 {[%emt 0:10:22]} Ndf6 {[%emt 0:09:17]} 19. Ne5 {[%emt 0:01:09]} Ba4 {[%emt 0:00:52]} 20. Ra1 {[%emt 0:04:44]} Bxb3 {[%emt 0:00:05]} 21. Qxb3 {[%emt 0:00:36]} Rfd8 {[%emt 0:01:16]} 22. Nd3 {[%emt 0:03:52]} cxd4 {[%emt 0:01:16]} 23. Bxd4 {[%emt 0:01:17]} Qxc4 {[%emt 0:06:19]} 24. Qxb4 {[%emt 0:01:33]} Bf8 {[%emt 0:05:00]} 25. Qxc4 {[%emt 0:02:22]} Rxc4 {[%emt 0:00:05]} 26. Bf1 {[%emt 0:00:05]} Ra8 {[%emt 0:05:28]} 27. Rdc1 {[%emt 0:10:59]} Rxc1 {[%emt 0:01:06]} 28. Rxc1 {[%emt 0:00:05]} Rb8 {[%emt 0:00:40]} 29. Ne5 {[%emt 0:01:14]} Nd2 {[%emt 0:02:02]} 30. Bxa6 {[%emt 0:01:25]} Ra8 {[%emt 0:00:38]} 31. Rc6 {[%emt 0:02:57]} Nd5 {[%emt 0:00:40]} 32. Bb7 {[%emt 0:14:40]} Rxa5 {[%emt 0:00:05]} 33. Rc8 {[%emt 0:00:44]} Nf6 {[%emt 0:00:28]} 34. Kg2 {[%emt 0:02:23]} Nb3 {[%emt 0:00:24]} 35. Bb2 {[%emt 0:02:33]} Nc5 {[%emt 0:00:35]} 36. Bf3 {[%emt 0:00:47]} Rb5 {[%emt 0:00:30]} 37. Ba3 {[%emt 0:01:04]} Ncd7 {[%emt 0:00:46]} 38. Nxd7 {[%emt 0:01:18]} Nxd7 {[%emt 0:00:04]} 39. Rd8 {[%emt 0:00:57]} Nc5 {[%emt 0:01:11]} 40. Bc6 {[%emt 0:00:53]} Ra5 {[%emt 0:00:35]} 41. Bb4 {[%emt 0:30:05]} Ra7 {[%emt 0:04:16]} 42. Bxc5 {[%emt 0:00:00]} Rc7 {[%emt 0:00:01]} 43. Bb4 {[%emt 0:00:00]} 1-0

[Event "18th Charleroi Experts 2019"]
[Site "Charleroi"]
[Date "2019.07.27"]
[Round "1.5"]
[White "Hovhannisyan, Mher"]
[Black "Real, Thibault"]
[Result "1/2-1/2"]
[ECO "E65"]
[WhiteElo "2444"]
[BlackElo "2262"]
[Annotator "NA"]
[PlyCount "75"]
[EventDate "2019.07.22"]
[EventType "tourn"]
[EventCountry "BEL"]
[SourceTitle "playchess.com"]
[Source "ChessBase"]
[SourceQuality "1"]
[TimeControl "40/5400+30:1800+30"]

1. d4 {[%emt 0:00:00]} Nf6 {[%emt 0:00:00]} 2. Nf3 {[%emt 0:00:00]} g6 {[%emt 0:00:00]} 3. g3 {[%emt 0:00:00]} Bg7 {[%emt 0:00:09]} 4. Bg2 {[%emt 0:00:00]} O-O {[%emt 0:00:14]} 5. O-O {[%emt 0:00:00]} d6 {[%emt 0:00:36]} 6. b3 {[%emt 0:00:04]} c5 {[%emt 0:05:00]} 7. Bb2 {[%emt 0:01:46]} cxd4 {[%emt 0:12:00]} 8. Nxd4 {[%emt 0:01:18]} Qc7 {[%emt 0:02:28]} 9. c4 {[%emt 0:01:06]} Nc6 {[%emt 0:04:29]} 10. Nc3 {[%emt 0:01:01]} Bd7 {[%emt 0:03:12]} 11. Rc1 {[%emt 0:02:18]} Qa5 {[%emt 0:02:48]} 12. e3 {[%emt 0:20:14]} Rfc8 {[%emt 0:12:41]} 13. Qe2 {[%emt 0:05:49]} Rab8 {[%emt 0:02:08]} 14. Rfd1 {[%emt 0:02:28]} a6 {[%emt 0:03:57]} 15. a3 {[%emt 0:02:20]} Bg4 {[%emt 0:15:54]} 16. f3 {[%emt 0:03:54]} Bd7 {[%emt 0:00:08]} 17. b4 {[%emt 0:03:11]} Qh5 {[%emt 0:02:53]} 18. Nb3 {[%emt 0:08:56]} Ne5 {[%emt 0:05:33]} 19. c5 {[%emt 0:02:24]} Be6 {[%emt 0:00:16]} 20. Nd2 {[%emt 0:18:08]} dxc5 {[%emt 0:01:17]} 21. bxc5 {[%emt 0:00:18]} Rxc5 {[%emt 0:00:04]} 22. Nce4 {[%emt 0:03:22]} Nxe4 {[%emt 0:04:24]} 23. Nxe4 {[%emt 0:00:08]} Rxc1 {[%emt 0:04:29]} 24. Rxc1 {[%emt 0:01:05]} Bd5 {[%emt 0:02:23]} 25. g4 {[%emt 0:01:05]} Qh4 {[%emt 0:00:06]} 26. Rc5 {[%emt 0:14:40]} Bxe4 {[%emt 0:05:14]} 27. Bxe5 {[%emt 0:01:10]} Bxe5 {[%emt 0:00:06]} 28. Rxe5 {[%emt 0:00:03]} Bc6 {[%emt 0:00:06]} 29. Qd2 {[%emt 0:01:50]} e6 {[%emt 0:03:56]} 30. g5 {[%emt 0:01:32]} Qa4 {[%emt 0:01:32]} 31. Qd6 {[%emt 0:00:17]} Re8 {[%emt 0:01:26]} 32. f4 {[%emt 0:03:30]} Bxg2 {[%emt 0:01:46]} 33. Kxg2 {[%emt 0:00:06]} Qc6+ {[%emt 0:00:03]} 34. Qxc6 {[%emt 0:00:44]} bxc6 {[%emt 0:00:01]} 35. Rc5 {[%emt 0:00:52]} Rc8 {[%emt 0:00:02]} 36. Kf3 {[%emt 0:00:51]} Kf8 {[%emt 0:00:04]} 37. Ra5 {[%emt 0:01:13]} c5 {[%emt 0:01:06]} 38. Rxa6 {[%emt 0:00:31]} 1/2-1/2

[Event "18th Charleroi Experts 2019"]
[Site "Charleroi"]
[Date "2019.07.29"]
[Round "3.1"]
[White "Dardha, Daniel"]
[Black "Cools, Gorik"]
[Result "1-0"]
[ECO "A16"]
[WhiteElo "2420"]
[BlackElo "2280"]
[Annotator "NA"]
[PlyCount "39"]
[EventDate "2019.07.22"]
[EventType "tourn"]
[EventCountry "BEL"]
[SourceTitle "playchess.com"]
[Source "ChessBase"]
[SourceQuality "1"]
[TimeControl "40/5400+30:1800+30"]

1. Nf3 {[%emt 0:00:00]} Nf6 {[%emt 0:00:13]} 2. c4 {[%emt 0:00:09]} g6 {[%emt 0:00:06]} 3. Nc3 {[%emt 0:00:06]} d5 {[%emt 0:00:04]} 4. cxd5 {[%emt 0:00:07]} Nxd5 {[%emt 0:00:04]} 5. e4 {[%emt 0:00:05]} Nxc3 {[%emt 0:00:11]} 6. dxc3 {[%emt 0:00:05]} Qxd1+ {[%emt 0:00:13]} 7. Kxd1 {[%emt 0:00:06]} Nd7 {[%emt 0:04:07]} 8. Bf4 {[%emt 0:00:55]} c6 {[%emt 0:01:52]} 9. Kc2 {[%emt 0:01:42]} Bg7 {[%emt 0:01:23]} 10. Nd2 {[%emt 0:02:13]} Ne5 {[%emt 0:25:19]} 11. Nc4 {[%emt 0:05:22]} Nxc4 {[%emt 0:03:42]} 12. Bxc4 {[%emt 0:00:06]} O-O {[%emt 0:23:19]} 13. Rhd1 {[%emt 0:14:15]} Re8 {[%emt 0:06:25]} 14. a4 {[%emt 0:02:01]} e5 {[%emt 0:02:23]} 15. Bg5 {[%emt 0:01:53]} h6 {[%emt 0:00:46]} 16. Be3 {[%emt 0:00:04]} a5 {[%emt 0:00:43]} 17. Rd6 {[%emt 0:03:42]} g5 {[%emt 0:02:26]} 18. Bb6 {[%emt 0:04:57]} Bf8 {[%emt 0:01:16]} 19. Rg6+ {[%emt 0:00:32]} Kh7 {[%emt 0:00:09]} 20. Rf6 {[%emt 0:00:34]} 1-0

[Event "18th Charleroi Experts 2019"]
[Site "Charleroi"]
[Date "2019.07.29"]
[Round "3.2"]
[White "Sterck, Arno"]
[Black "Hamblok, Roel"]
[Result "1/2-1/2"]
[ECO "E51"]
[WhiteElo "2316"]
[BlackElo "2261"]
[Annotator "NA"]
[PlyCount "40"]
[EventDate "2019.07.22"]
[EventType "tourn"]
[EventCountry "BEL"]
[SourceTitle "playchess.com"]
[Source "ChessBase"]
[SourceQuality "1"]
[TimeControl "40/5400+30:1800+30"]

1. d4 {[%emt 0:00:16]} Nf6 {[%emt 0:00:01]} 2. Nf3 {[%emt 0:01:18]} d5 {[%emt 0:00:27]} 3. c4 {[%emt 0:00:04]} e6 {[%emt 0:00:05]} 4. Nc3 {[%emt 0:00:15]} Bb4 {[%emt 0:00:21]} 5. Bd2 {[%emt 0:00:47]} O-O {[%emt 0:01:31]} 6. e3 {[%emt 0:00:44]} c5 {[%emt 0:09:12]} 7. a3 {[%emt 0:05:21]} Bxc3 {[%emt 0:02:19]} 8. Bxc3 {[%emt 0:00:04]} Ne4 {[%emt 0:00:40]} 9. Rc1 {[%emt 0:00:28]} Nxc3 {[%emt 0:08:10]} 10. Rxc3 {[%emt 0:00:10]} cxd4 {[%emt 0:00:15]} 11. Qxd4 {[%emt 0:08:34]} Nc6 {[%emt 0:00:33]} 12. Qc5 {[%emt 0:01:18]} Ne7 {[%emt 0:08:16]} 13. Qd4 {[%emt 0:20:13]} b6 {[%emt 0:05:30]} 14. Bd3 {[%emt 0:00:59]} Bb7 {[%emt 0:07:33]} 15. Qg4 {[%emt 0:28:38]} h6 {[%emt 0:06:30]} 16. O-O {[%emt 0:08:09]} dxc4 {[%emt 0:08:10]} 17. Bxc4 {[%emt 0:01:24]} Nd5 {[%emt 0:05:22]} 18. Rd3 {[%emt 0:00:28]} Qf6 {[%emt 0:01:09]} 19. Qd4 {[%emt 0:05:16]} Rac8 {[%emt 0:04:31]} 20. Rfd1 {[%emt 0:02:53]} Qxd4 {[%emt 0:03:20]} 1/2-1/2

[Event "18th Charleroi Experts 2019"]
[Site "Charleroi"]
[Date "2019.07.29"]
[Round "3.3"]
[White "Lenaerts, Lennert"]
[Black "Dgebuadze, Alexandre"]
[Result "0-1"]
[ECO "A40"]
[WhiteElo "2355"]
[BlackElo "2495"]
[Annotator "ChessBase"]
[PlyCount "48"]
[EventDate "2019.07.22"]
[EventType "tourn"]
[EventCountry "BEL"]
[SourceTitle "playchess.com"]
[Source "ChessBase"]
[SourceQuality "1"]
[TimeControl "40/5400+30:1800+30"]

1. d4 {[%emt 0:00:00]} e6 {[%emt 0:00:05]} 2. c4 {[%emt 0:00:00]} Bb4+ {[%emt 0:00:05]} 3. Bd2 {[%emt 0:00:00]} a5 {[%emt 0:00:23]} 4. g3 {[%emt 0:00:33]} Nc6 {[%emt 0:01:15]} 5. Nf3 {[%emt 0:00:11]} d6 {[%emt 0:01:12]} 6. a3 {[%emt 0:00:15]} Bxd2+ {[%emt 0:00:06]} 7. Qxd2 {[%emt 0:00:03]} Nf6 {[%emt 0:12:21]} 8. Nc3 {[%emt 0:00:17]} O-O {[%emt 0:12:35]} 9. Bg2 {[%emt 0:00:26]} e5 {[%emt 0:00:59]} 10. dxe5 {[%emt 0:00:07]} dxe5 {[%emt 0:00:35]} 11. Rd1 {[%emt 0:00:13]} Qxd2+ {[%emt 0:13:16]} 12. Rxd2 {[%emt 0:04:49]} Be6 {[%emt 0:00:41]} 13. Nd5 {[%emt 0:13:55]} Rad8 {[%emt 0:01:16]} 14. Nxc7 {[%emt 0:05:00]} Bxc4 {[%emt 0:00:52]} 15. Rxd8 {[%emt 0:00:08]} Rxd8 {[%emt 0:00:15]} 16. Nd2 {[%emt 0:00:02]} Nd4 {[%emt 0:07:43]} 17. e3 {[%emt 0:02:32]} Nc2+ {[%emt 0:00:35]} 18. Kd1 {[%emt 0:00:02]} Bd3 {[%emt 0:11:35]} 19. Bf1 {[%emt 0:00:44]} Bg6 {[%emt 0:10:04]} 20. Ke2 {[%emt 0:00:42]} Ng4 {[%emt 0:01:43]} 21. Bg2 {[%emt 0:09:09]} Bd3+ {[%emt 0:05:31]} 22. Kf3 {[%emt 0:00:23]} h5 {[%emt 0:05:14]} 23. h3 {[%emt 0:02:05]} Nh2+ {[%emt 0:02:17]} 24. Rxh2 {[%emt 0:00:09]} Ne1# 0-1

[Event "18th Charleroi Experts 2019"]
[Site "Charleroi"]
[Date "2019.07.29"]
[Round "3.4"]
[White "Hovhannisyan, Mher"]
[Black "Ringoir, Tanguy"]
[Result "0-1"]
[ECO "E05"]
[WhiteElo "2444"]
[BlackElo "2503"]
[Annotator "ChessBase"]
[PlyCount "102"]
[EventDate "2019.07.22"]
[EventType "tourn"]
[EventCountry "BEL"]
[SourceTitle "playchess.com"]
[Source "ChessBase"]
[SourceQuality "1"]
[TimeControl "40/5400+30:1800+30"]

1. Nf3 {[%emt 0:00:00]} Nf6 {[%emt 0:00:07]} 2. g3 {[%emt 0:01:40]} d5 {[%emt 0:00:23]} 3. Bg2 {[%emt 0:01:47]} e6 {[%emt 0:00:19]} 4. d4 {[%emt 0:01:46]} Be7 {[%emt 0:00:16]} 5. O-O {[%emt 0:03:04]} O-O {[%emt 0:00:06]} 6. c4 {[%emt 0:00:20]} dxc4 {[%emt 0:00:05]} 7. Ne5 {[%emt 0:00:52]} Nc6 {[%emt 0:01:05]} 8. Nxc6 {[%emt 0:02:38]} bxc6 {[%emt 0:00:05]} 9. Na3 {[%emt 0:01:47]} Bxa3 {[%emt 0:01:11]} 10. bxa3 {[%emt 0:01:21]} Ba6 {[%emt 0:02:34]} 11. Qd2 {[%emt 0:09:12]} Rb8 {[%emt 0:13:26]} 12. Rd1 {[%emt 0:05:35]} Nd5 {[%emt 0:19:46]} 13. Qa5 {[%emt 0:18:54]} Qc8 {[%emt 0:10:15]} 14. a4 {[%emt 0:18:34]} c3 {[%emt 0:00:47]} 15. Ba3 {[%emt 0:15:45]} Bxe2 {[%emt 0:00:28]} 16. Re1 {[%emt 0:00:56]} Qa6 {[%emt 0:06:31]} 17. Qxa6 {[%emt 0:00:44]} Bxa6 {[%emt 0:02:43]} 18. Bxf8 {[%emt 0:00:05]} Kxf8 {[%emt 0:00:04]} 19. Bxd5 {[%emt 0:02:44]} cxd5 {[%emt 0:00:38]} 20. Rec1 {[%emt 0:04:37]} Ke7 {[%emt 0:16:02]} 21. Rxc3 {[%emt 0:00:09]} Bc4 {[%emt 0:00:05]} 22. a3 {[%emt 0:01:47]} Kd6 {[%emt 0:00:31]} 23. Rac1 {[%emt 0:00:15]} e5 {[%emt 0:01:51]} 24. dxe5+ Kxe5 {[%emt 0:00:02]} 25. Rxc4 {[%emt 0:03:53]} dxc4 {[%emt 0:00:04]} 26. Rxc4 {[%emt 0:00:01]} Rb7 {[%emt 0:00:07]} 27. Rc1 {[%emt 0:00:23]} Kd6 {[%emt 0:01:04]} 28. Rd1+ {[%emt 0:00:49]} Kc6 {[%emt 0:00:24]} 29. Rc1+ {[%emt 0:00:16]} Kd7 {[%emt 0:06:53]} 30. Kg2 {[%emt 0:03:52]} c6 {[%emt 0:00:34]} 31. Rd1+ {[%emt 0:01:03]} Ke6 {[%emt 0:00:39]} 32. Re1+ {[%emt 0:00:18]} Kd5 {[%emt 0:00:01]} 33. Rd1+ {[%emt 0:00:16]} Ke4 {[%emt 0:00:01]} 34. f3+ {[%emt 0:01:04]} Ke3 {[%emt 0:00:06]} 35. Rc1 {[%emt 0:01:03]} Rc7 {[%emt 0:00:10]} 36. Rc5 {[%emt 0:00:00]} Kd4 {[%emt 0:00:02]} 37. Rc1 {[%emt 0:00:22]} c5 {[%emt 0:00:15]} 38. Kf2 {[%emt 0:00:06]} c4 {[%emt 0:01:58]} 39. Rd1+ {[%emt 0:00:59]} Kc3 {[%emt 0:00:06]} 40. Rd8 {[%emt 0:00:12]} Kb2 {[%emt 0:01:28]} 41. Rb8+ {[%emt 0:30:16]} Kxa3 {[%emt 0:31:47]} 42. Ke2 {[%emt 0:00:10]} Rd7 {[%emt 0:00:02]} 43. a5 {[%emt 0:01:14]} c3 {[%emt 0:00:04]} 44. a6 {[%emt 0:00:20]} c2 {[%emt 0:00:05]} 45. Rc8 {[%emt 0:00:03]} Kb2 {[%emt 0:00:56]} 46. Rb8+ {[%emt 0:00:04]} Kc1 {[%emt 0:00:03]} 47. Rb7 {[%emt 0:00:24]} Rd2+ {[%emt 0:00:14]} 48. Ke1 {[%emt 0:00:47]} Rd6 {[%emt 0:06:29]} 49. Rxa7 {[%emt 0:00:24]} Kb2 {[%emt 0:00:21]} 50. Rb7+ {[%emt 0:00:12]} Ka3 {[%emt 0:00:05]} 51. Rc7 {[%emt 0:01:23]} Rd1+ {[%emt 0:12:12]} 0-1